Cogmind - Beta 17 @@@ ROGUE MODE // 2026.07.18 @ 05:36:45 Player: Artackni Result: Destroyed by C-17 Slicer with Blade Saw Performance ------------- Evolutions (4) 2000 Regions Visited (9) 1800 Robots Destroyed (4) 20 Value Destroyed (40) 40 Prototype IDs (0) 0 Alien Tech Used (0) 0 Bonus (1200) 1200 TOTAL SCORE: 5060 Bonus ------- Pacifist 200 Entered DSFs 1000 Cogmind --------- Core Integrity 0/850 Matter 272/300 Energy 98/100 System Corruption 1% Temperature Cool (0) Movement Core (50) Location -6/DSF Parts ------- > --- POWER (2) -------- (None) > --- PROPULSION (7) --- (None) > --- UTILITY (4) ------ (None) > --- WEAPON (2) ------- (None) > --- INVENTORY (5) ---- Micro Nuclear Core Micro Nuclear Core Micro Nuclear Core Improved Cooling System Missile Launcher Peak State ------------ > --- POWER ------------ (None) > --- PROPULSION ------- (None) > --- UTILITY ---------- Advanced Visual Processing Unit Advanced Visual Processing Unit > --- WEAPON ----------- (None) > --- INVENTORY -------- Micro Nuclear Core Micro Nuclear Core Micro Nuclear Core Missile Launcher Missile Launcher [Rating: 7] Favorites ----------- Power None Propulsion Flight Unit Flight Unit Flight Unit Utility Advanced Visual Processing Unit Device Improved Cooling System Processor Advanced Visual Processing Unit Weapon Grenade Launcher Launcher Grenade Launcher Build | -11 -10 -9 -8 -7 -7 -6 -6 -6 -6 ------- Run | Yrd Mat Mat Mat Fac DSF Fac Was Fac DSF Slots Evolved 8 | . . 2 2 2 . 2 . . . Power 1 | . . . . 1 . . . . . Propulsion 5 | . . 2 . 1 . 2 . . . Utility 2 | . . . 2 . . . . . . Weapon . | . . . . . . . . . . Parts Attached 5 | . . 2 . . . 2 . . 1 Power . | . . . . . . . . . . Engine . | . . . . . . . . . . Core . | . . . . . . . . . . Reactor . | . . . . . . . . . . Propulsion 1 | . . 1 . . . . . . . Treads . | . . . . . . . . . . Leg . | . . . . . . . . . . Wheel . | . . . . . . . . . . Hover . | . . . . . . . . . . Flight 1 | . . 1 . . . . . . . Utility 3 | . . . . . . 2 . . 1 Device 1 | . . . . . . . . . 1 Storage . | . . . . . . . . . . Processor 2 | . . . . . . 2 . . . Hackware . | . . . . . . . . . . Protection . | . . . . . . . . . . Artifact . | . . . . . . . . . . Weapon 1 | . . 1 . . . . . . . Energy Gun . | . . . . . . . . . . Energy Cannon . | . . . . . . . . . . Ballistic Gun . | . . . . . . . . . . Ballistic Cannon . | . . . . . . . . . . Launcher 1 | . . 1 . . . . . . . Special Weapon . | . . . . . . . . . . Impact Weapon . | . . . . . . . . . . Slashing Weapon . | . . . . . . . . . . Piercing Weapon . | . . . . . . . . . . Special Melee Weapon . | . . . . . . . . . . Unidentified Prototypes . | . . . . . . . . . . Parts Lost 4 | . . . 2 . . . 1 . 1 Power . | . . . . . . . . . . Propulsion 1 | . . . 1 . . . . . . Utility 2 | . . . . . . . 1 . 1 Weapon 1 | . . . 1 . . . . . . Highest Loss Streak 2 | . . . 2 . . . 1 . 1 To Critical Strikes . | . . . . . . . . . . Average Backups 2 | . . . . . 1 5 5 5 5 Power 1 | . . . . . . 3 3 3 3 Propulsion . | . . . . . . . . . . Utility . | . . . . . . . . . . Weapon . | . . . . . . 2 2 2 1 Tool/Special . | . . . . . . . . . . Unused Backups 6 | . . . . . . . . . 6 Power 3 | . . . . . . . . . 3 Propulsion . | . . . . . . . . . . Utility 1 | . . . . . . . . . 1 Weapon 2 | . . . . . . . . . 2 Tool/Special . | . . . . . . . . . . Average Slot Usage (%) 3 | . . 4 12 . . 3 8 . 3 Processor 1 | . . . . . . 3 8 . . Launcher 1 | . . 3 6 . . . . . . Peak Build Rating 7 | . . 2 2 . 1 7 7 1 5 Average Rating 1 | . . . 1 . . 2 5 1 2 On Entrance 1 | . . . 2 . . 1 7 1 1 Avg Prop Armor Cover (%) . | . . . . . . . . . . Naked Turns 362 | . 34 43 23 75 67 75 11 18 16 Heaviest Build 3 | . . 3 3 . . . . . 2 Greatest Support 4 | 3 3 4 4 3 3 3 3 3 3 Greatest Overweight (x) . | . . . . . . . . . . Average Overweight (x) . | . . . . . . . . . . Largest Inventory Capacity 5 | 5 5 5 5 5 5 5 5 5 5 Average Capacity 5 | 5 5 5 5 5 5 5 5 5 5 Most Carried 5 | . 1 1 . . 5 5 5 5 5 Average Carried 2 | . . . . . 1 5 5 5 4 Final Capacity 5 | 5 5 5 5 5 5 5 5 5 5 Final Carried 5 | . 1 . . . 5 5 5 5 5 Class Distribution -------------------- 100% | Mutant Dominant Class ---------------- Mutant | -10/Materials Mutant | -9/Materials Mutant | -8/Materials Mutant | -7/Factory Mutant | -7/DSF Mutant | -6/Factory Mutant | -6/Waste Mutant | -6/Factory Mutant | -6/DSF Resources | -11 -10 -9 -8 -7 -7 -6 -6 -6 -6 ----------- Run | Yrd Mat Mat Mat Fac DSF Fac Was Fac DSF Matter Collected 170 | 154 . 10 . . . . . . 6 Remotely . | . . . . . . . . . . Salvage Created 28 | . . 23 5 . . . . . . Parts 6 | . . 6 . . . . . . . Haulers Intercepted . | . . . . . . . . . . Recyclers Shooed . | . . . . . . . . . . Parts Field Recycled . | . . . . . . . . . . Retrieved Matter . | . . . . . . . . . . Parts Self-Destructed . | . . . . . . . . . . Prevented . | . . . . . . . . . . Parts Restored . | . . . . . . . . . . Kills | -11 -10 -9 -8 -7 -7 -6 -6 -6 -6 ------- Run | Yrd Mat Mat Mat Fac DSF Fac Was Fac DSF Combat Hostiles Destroyed 4 | . . 3 1 . . . . . . AOE 4 | . . 3 1 . . . . . . Classes Destroyed 1 | . . 1 . . . . . . . Swarmer 4 | . . 3 1 . . . . . . Best Kill Streak 3 | . . 3 1 . . . . . . Combat Bots Only 3 | . . 3 1 . . . . . . Max Kills in Single Turn 3 | . . 3 1 . . . . . . Gunslinging . | . . . . . . . . . . Exploded 3 | . . 3 1 . . . . . . Melee . | . . . . . . . . . . Uniques/NPCs Destroyed . | . . . . . . . . . . Combat | -11 -10 -9 -8 -7 -7 -6 -6 -6 -6 -------- Run | Yrd Mat Mat Mat Fac DSF Fac Was Fac DSF Hostile Shots Fired 195 | . . 27 34 . 48 75 1 . 10 Missed 78 | . . 11 9 . 23 33 . . 2 Hits 117 | . . 16 25 . 25 42 1 . 8 Melee 3 | . . 1 . . . . 1 . 1 Projectile 114 | . . 15 25 . 25 42 . . 7 AOE 1 | . . . . . . . . . 1 Critical Strikes 3 | . . 1 . . . 1 1 . . Damage Taken 1954 | . . 192 378 17 420 523 45 . 379 Core 1775 | . . 132 348 17 420 504 45 . 309 Absorbed by Shields 71 | . . . . . 71 . . . . Core Remaining (%) 68 | 100 100 67 36 . 37 . . . . Volleys Fired 2 | . . 1 1 . . . . . . Largest 1 | . . 1 1 . . . . . . Hottest 30 | . . 30 30 . . . . . . Shots Fired 2 | . . 1 1 . . . . . . Gun . | . . . . . . . . . . Cannon . | . . . . . . . . . . Launcher 2 | . . 1 1 . . . . . . Special . | . . . . . . . . . . Kinetic . | . . . . . . . . . . Thermal . | . . . . . . . . . . Explosive 2 | . . 1 1 . . . . . . Electromagnetic . | . . . . . . . . . . Robot Hit Streak . | . . . . . . . . . . Robot Miss Streak . | . . . . . . . . . . Penetration Max . | . . . . . . . . . . Secondary Targets . | . . . . . . . . . . Shots Hit Robots . | . . . . . . . . . . Core Hits 5 | . . 3 2 . . . . . . Critical Kills . | . . . . . . . . . . Critical Parts Destroyed . | . . . . . . . . . . Critical Strikes . | . . . . . . . . . . Melee Attacks . | . . . . . . . . . . Impact . | . . . . . . . . . . Slashing . | . . . . . . . . . . Piercing . | . . . . . . . . . . Sneak Attacks . | . . . . . . . . . . Combat Hostiles . | . . . . . . . . . . Follow-up Attacks . | . . . . . . . . . . Damage Inflicted 207 | . . 116 91 . . . . . . Guns . | . . . . . . . . . . Cannons . | . . . . . . . . . . Explosions 163 | . . 116 47 . . . . . . Melee . | . . . . . . . . . . Ramming 44 | . . . 44 . . . . . . Kinetic . | . . . . . . . . . . Thermal . | . . . . . . . . . . Explosive 163 | . . 116 47 . . . . . . Electromagnetic . | . . . . . . . . . . Impact . | . . . . . . . . . . Slashing . | . . . . . . . . . . Piercing . | . . . . . . . . . . Highest Corruption 1 | . . . . . . . . . 1 Average Corruption 1 | . . . . . . . . . 1 Corruption Purged . | . . . . . . . . . . Corruption Blocked . | . . . . . . . . . . Overload Shots . | . . . . . . . . . . Overflow Damage 30 | . . 12 18 . . . . . . Projectiles . | . . . . . . . . . . Explosions 30 | . . 12 18 . . . . . . Melee . | . . . . . . . . . . Knockbacks 1 | . . . 1 . . . . . . Impact 1 | . . . 1 . . . . . . Kinetic . | . . . . . . . . . . Secondary . | . . . . . . . . . . Self-Inflicted Damage 19 | . . . 19 . . . . . . Shots . | . . . . . . . . . . Rammed 15 | . . . 15 . . . . . . Targets Rammed 15 | . . . 15 . . . . . . Kicked . | . . . . . . . . . . Crushed . | . . . . . . . . . . Highest Temperature . | . . . . . . . . . . Average Temperature . | . . . . . . . . . . Received Heat Transfer 273 | . . 66 117 . . 90 . . . Siege Activations . | . . . . . . . . . . Martial Activations . | . . . . . . . . . . Shielding Activations . | . . . . . . . . . . Robots Disrupted . | . . . . . . . . . . Combat Hostiles . | . . . . . . . . . . Robots Corrupted . | . . . . . . . . . . Combat Hostiles . | . . . . . . . . . . Parts Fried . | . . . . . . . . . . Impact Corruptions . | . . . . . . . . . . Robots Melted . | . . . . . . . . . . Combat Hostiles . | . . . . . . . . . . Parts Melted . | . . . . . . . . . . Heat Transferred . | . . . . . . . . . . Parts Sabotaged . | . . . . . . . . . . Parts Stolen . | . . . . . . . . . . Parts Stripped . | . . . . . . . . . . Power Chain Reactions . | . . . . . . . . . . Alert | -11 -10 -9 -8 -7 -7 -6 -6 -6 -6 ------- Run | Yrd Mat Mat Mat Fac DSF Fac Was Fac DSF Maximum Alert Level . | . . . . . . . . . . Low Security (%) 100 | 100 100 100 100 100 100 100 100 100 100 Level 1 . | . . . . . . . . . . Level 2 . | . . . . . . . . . . Level 3 . | . . . . . . . . . . Level 4 . | . . . . . . . . . . Level 5 . | . . . . . . . . . . High Security . | . . . . . . . . . . Max Security . | . . . . . . . . . . Peak Influence 114 | . . 114 58 12 30 53 18 . . Initial 43 | . . . 43 12 . 15 18 . . Average 12 | . . 30 38 3 13 5 10 . . Influence Increases 242 | . . 124 25 . 30 63 . . . Destroy 0b10 Robot/C 80 | . . 60 20 . . . . . . Destroy Leader 10 | . . 10 . . . . . . . Successful Hack 18 | . . . . . . 18 . . . Destroy Structure 14 | . . 9 5 . . . . . . Lose Combat Pursuer 120 | . . 45 . . 30 45 . . . Influence Decreases 242 | . . 20 101 28 . 40 53 . . Entered New Map 127 | . . . 61 16 . 15 35 . . Time Decay 87 | . . 20 20 12 . 25 10 . . Lost Part 28 | . . . 20 . . . 8 . . Squads Dispatched 8 | . . 2 2 1 . 2 . . 1 Investigation 2 | . . . . 1 . 1 . . . Extermination . | . . . . . . . . . . Reinforcement 6 | . . 2 2 . . 1 . . 1 Assault . | . . . . . . . . . . Garrison . | . . . . . . . . . . Intercept . | . . . . . . . . . . Searches Triggered . | . . . . . . . . . . Construction Impeded . | . . . . . . . . . . Haulers Reinforced . | . . . . . . . . . . Active Scanning Responses . | . . . . . . . . . . Cargo Convoy Interrupts . | . . . . . . . . . . Stealth | -11 -10 -9 -8 -7 -7 -6 -6 -6 -6 --------- Run | Yrd Mat Mat Mat Fac DSF Fac Was Fac DSF Distress Signals 1 | . . 1 . . . . . . . Communications Jammed . | . . . . . . . . . . Distress Signals . | . . . . . . . . . . Times Spotted 51 | . . 14 14 . 4 8 6 . 5 Peak Tracking Total 11 | . . 11 11 . 4 6 6 . 5 Tactical Retreats 4 | . . 1 . . 2 1 . . . Traps | -11 -10 -9 -8 -7 -7 -6 -6 -6 -6 ------- Run | Yrd Mat Mat Mat Fac DSF Fac Was Fac DSF Traps Triggered 5 | . . . . 1 2 2 . . . Indirectly . | . . . . . . . . . . Trap Hack Attempts . | . . . . . . . . . . Triggered . | . . . . . . . . . . Disarmed . | . . . . . . . . . . Reprogrammed . | . . . . . . . . . . Reused . | . . . . . . . . . . Traps Extracted . | . . . . . . . . . . Installed . | . . . . . . . . . . Triggered . | . . . . . . . . . . Machines | -11 -10 -9 -8 -7 -7 -6 -6 -6 -6 ---------- Run | Yrd Mat Mat Mat Fac DSF Fac Was Fac DSF Machines Disabled . | . . . . . . . . . . Max in Single Turn . | . . . . . . . . . . Machines Repaired . | . . . . . . . . . . Machines Dismantled . | . . . . . . . . . . Machines Sabotaged . | . . . . . . . . . . Overloaded Fab Kills . | . . . . . . . . . . Hacking | -11 -10 -9 -8 -7 -7 -6 -6 -6 -6 --------- Run | Yrd Mat Mat Mat Fac DSF Fac Was Fac DSF Machines Accessed 5 | . . . 1 1 . 2 . 1 . Terminals 5 | . . . 1 1 . 2 . 1 . Fabricators . | . . . . . . . . . . Repair Stations . | . . . . . . . . . . Recycling Units . | . . . . . . . . . . Scanalyzers . | . . . . . . . . . . Garrison Access . | . . . . . . . . . . Total Hacks 10 | . . . 2 3 . 4 . 1 . Successful 3 | . . . . 1 . 1 . 1 . Failed 7 | . . . 2 2 . 3 . . . Catastrophic . | . . . . . . . . . . Database Lockouts . | . . . . . . . . . . Manual 5 | . . . 2 . . 3 . . . Terminals 10 | . . . 2 3 . 4 . 1 . Fabricators . | . . . . . . . . . . Repair Stations . | . . . . . . . . . . Recycling Units . | . . . . . . . . . . Scanalyzers . | . . . . . . . . . . Garrison Access . | . . . . . . . . . . Terminal Hacks 3 | . . . . 1 . 1 . 1 . Open DSF 2 | . . . . 1 . . . 1 . Level Access Points 1 | . . . . . . 1 . . . Fabricator Hacks . | . . . . . . . . . . Repair Station Hacks . | . . . . . . . . . . Recycling Unit Hacks . | . . . . . . . . . . Scanalyzer . | . . . . . . . . . . Garrison Access Hacks . | . . . . . . . . . . Unauthorized Hacks . | . . . . . . . . . . Terminals . | . . . . . . . . . . Fabricators . | . . . . . . . . . . Repair Stations . | . . . . . . . . . . Recycling Units . | . . . . . . . . . . Scanalyzers . | . . . . . . . . . . Garrison Access . | . . . . . . . . . . Data Cores Recovered . | . . . . . . . . . . Used . | . . . . . . . . . . Hacking Detections 3 | . . . 1 1 . 1 . . . Full Trace Events 3 | . . . 1 1 . 1 . . . Feedback Events . | . . . . . . . . . . Feedback Blocked . | . . . . . . . . . . Robot Schematics Acquired . | . . . . . . . . . . Robots Built . | . . . . . . . . . . Authchips . | . . . . . . . . . . Time . | . . . . . . . . . . Total Robot Build Rating . | . . . . . . . . . . Part Schematics Acquired . | . . . . . . . . . . Parts Built . | . . . . . . . . . . Authchips . | . . . . . . . . . . Time . | . . . . . . . . . . Total Part Build Rating . | . . . . . . . . . . Part Studies Acquired . | . . . . . . . . . . Parts Repaired . | . . . . . . . . . . Time . | . . . . . . . . . . Parts Recycled . | . . . . . . . . . . Recycled Matter . | . . . . . . . . . . Retrieved Matter . | . . . . . . . . . . Retrieved Components . | . . . . . . . . . . Parts Scanalyzed . | . . . . . . . . . . Part Schematics Acquired . | . . . . . . . . . . Parts Damaged . | . . . . . . . . . . Bothacking | -11 -10 -9 -8 -7 -7 -6 -6 -6 -6 ------------ Run | Yrd Mat Mat Mat Fac DSF Fac Was Fac DSF Used RIF Installer . | . . . . . . . . . . Robots Hacked . | . . . . . . . . . . Non-combat . | . . . . . . . . . . Combat . | . . . . . . . . . . Robot Hacks Applied . | . . . . . . . . . . Relay Couplers Released . | . . . . . . . . . . Fabnet Peak Effective % . | . . . . . . . . . . Robots Rewired . | . . . . . . . . . . Allies Hacked . | . . . . . . . . . . Hacks Repelled . | . . . . . . . . . . Allies | -11 -10 -9 -8 -7 -7 -6 -6 -6 -6 -------- Run | Yrd Mat Mat Mat Fac DSF Fac Was Fac DSF Total Allies 1 | . . . . . . . 1 . . Largest Group 1 | . . . . . . . 1 . . Highest-Rated Group 31 | . . . . . . . 31 . . Highest-Rated Ally 31 | . . . . . . . 31 . . Total Orders . | . . . . . . . . . . Ally Attacks 12 | . . . . . . . 12 . . Total Damage 189 | . . . . . . . 189 . . Kills . | . . . . . . . . . . Allies Corrupted . | . . . . . . . . . . Allies Melted . | . . . . . . . . . . Intel | -11 -10 -9 -8 -7 -7 -6 -6 -6 -6 ------- Run | Yrd Mat Mat Mat Fac DSF Fac Was Fac DSF Active Infowar (turns) 66 | . . . . . . 35 31 . . Optics 66 | . . . . . . 35 31 . . Robot Analysis Total . | . . . . . . . . . . Derelict Logs Recovered . | . . . . . . . . . . Drone Launches . | . . . . . . . . . . Drone Recoveries . | . . . . . . . . . . Exploration | -11 -10 -9 -8 -7 -7 -6 -6 -6 -6 ------------- Run | Yrd Mat Mat Mat Fac DSF Fac Was Fac DSF Turns Passed 496 | 11 34 60 50 75 67 110 42 18 29 Spaces Moved 897 | 22 65 116 79 148 86 213 83 36 49 Core 810 | 22 65 91 17 148 86 213 83 36 49 Treads . | . . . . . . . . . . Legs . | . . . . . . . . . . Wheels . | . . . . . . . . . . Hover . | . . . . . . . . . . Flight 87 | . . 25 62 . . . . . . Fastest Speed 40 | 50 50 40 40 50 50 50 50 50 50 Average Speed 49 | 50 50 47 42 50 50 50 50 50 50 Slowest Speed 50 | 50 50 50 50 50 50 50 50 50 50 Overloaded Moves . | . . . . . . . . . . Propulsion Burnouts . | . . . . . . . . . . Robots Hopped . | . . . . . . . . . . Potential Cave-ins . | . . . . . . . . . . Cave-ins Triggered . | . . . . . . . . . . Exploration Rate (%) 28 | 3 17 19 16 6 77 10 71 1 62 Regions Visited 9 Branch Regions . Pre-discovered Areas . | . . . . . . . . . . Known Exits Taken 2 | . . . . 1 . . . 1 . Unknown Exits Taken 4 | 1 1 1 1 . . . . . . Scrap Searched . | . . . . . . . . . . Spaces Dug . | . . . . . . . . . . Terrain Destroyed 12 | . . 8 4 . . . . . . Melee . | . . . . . . . . . . Projectile . | . . . . . . . . . . AOE 12 | . . 8 4 . . . . . . Terrain Rammed . | . . . . . . . . . . Walls Destroyed . | . . . . . . . . . . Machines Disabled . | . . . . . . . . . . Actions | -11 -10 -9 -8 -7 -7 -6 -6 -6 -6 --------- Run | Yrd Mat Mat Mat Fac DSF Fac Was Fac DSF Total 941 | 21 65 118 94 148 109 215 82 35 54 Wait . | . . . . . . . . . . Move 891 | 21 64 115 79 148 85 213 82 35 49 Hop . | . . . . . . . . . . Pick Up 8 | . 1 . . . 5 . . . 2 Fast Attach 4 | . . 1 . . . 2 . . 1 Attach 1 | . . 1 . . . . . . . Detach . | . . . . . . . . . . Swap . | . . . . . . . . . . Drop 2 | . . . . . . . . . 2 Fire 2 | . . 1 1 . . . . . . Melee . | . . . . . . . . . . Ram 14 | . . . 14 . . . . . . Kick . | . . . . . . . . . . Crush . | . . . . . . . . . . Escape Stasis 19 | . . . . . 19 . . . . Rewire . | . . . . . . . . . . Trap . | . . . . . . . . . . Miscellaneous . | . . . . . . . . . . Route ------- -11/Scrapyard -10/Materials -9/Materials -8/Materials -7/Factory -7/DSF -6/Factory (discovered 4 exits: Fac x4) -6/Waste -6/Factory -6/DSF History --------- Turn | Location | Event 6 | -11/Scrapyard | Discovered new exit (range 12) 12 | -11/Scrapyard | Entered Materials 31 | -10/Materials | Discovered new exit (range 12) 46 | -10/Materials | Entered another Materials area 46 | -9/Materials | Evolved 2 slots: Propulsion x2 103 | -9/Materials | Discovered new exit (range 10) 106 | -9/Materials | Entered another Materials area 106 | -8/Materials | Evolved 2 slots: Utility x2 152 | -8/Materials | Core integrity fell below 50% 152 | -8/Materials | Discovered new exit (range 9) 156 | -8/Materials | Entered Factory 156 | -7/Factory | Evolved 2 slots: Power x1, Propulsion x1 231 | -7/Factory | Identified exit to DSF 231 | -7/Factory | Entered DSF 260 | -7/DSF | Additional patrols routed to DSF 274 | -7/DSF | Core integrity fell below 50% 287 | -7/DSF | Discovered new exit (range 16) 298 | -7/DSF | Entered Factory 298 | -6/Factory | Evolved 2 slots: Propulsion x2 306 | -6/Factory | Build established: Mutant 392 | -6/Factory | Identified exit to Factory 398 | -6/Factory | Core integrity fell below 50% 408 | -6/Factory | Sucked down chute 408 | -6/Factory | Entered Waste 409 | -6/Waste | Met a frightened Derelict 413 | -6/Waste | Spotted C-40 Crusher 431 | -6/Waste | Spotted C-40 Crusher 432 | -6/Waste | Spotted C-40 Crusher 433 | -6/Waste | Spotted C-40 Crusher 433 | -6/Waste | Spotted C-40 Crusher 439 | -6/Waste | Crushed by Compactor (1 part destroyed, 1 dropped) 439 | -6/Waste | Spotted C-40 Crusher 445 | -6/Waste | Discovered new exit (range 11) 450 | -6/Waste | Entered Factory 468 | -6/Factory | Identified exit to DSF 468 | -6/Factory | Entered DSF 487 | -6/DSF | Core integrity fell below 20% 494 | -6/DSF | Additional patrols routed to DSF 497 | -6/DSF | Destroyed by C-17 Slicer with Blade Saw Last Messages --------------- 00468_ EXIT=UNLOCKED: DSF LOCATION=DSF AMBIENT_HEAT=-10 GOAL=ESCAPE 00474_ Dropped Mic. Nuclear Core. 00474_ Dropped Missile Launcher. 00475_ Acquired Mic. Nuclear Core. 00476_ ALERT: Suspicious intruders detected, dispatching Cutter reinforcements to area. 00478_ Acquired Imp. Cooling System. 00480_ Knocked back. 00482_ Penetrated by Slug. 00482_ Knocked back. 00483_ Acquired 6 matter. 00486_ Penetrated by Slug. 00486_ Knocked back. 00492_ Imp. Cooling System destroyed. 00492_ System corrupted by crushing effect (+1). 00492_ Knocked back. 00494_ Hostiles detected in DSF, routing additional patrols. Map ----- +----------------------------------------------------+ | | | | | | | | | | | | | | | | | | | | | | | | | | | | | | | | | | | ?????????????????????????????????????????? | | ?????????????????????????????????????????? | | ?????????????????????????????????????????? | | ?????????????????????????????????????????? | | ?????????????????????????????????????????? | | ?????????????????????????????????????????? | | ????????????#########????????????????????? | | ????????????# /// ########????"????????? | | ????????????# /// # #@ ##"""""#??????? | | ????????????# c ""#??????? | | ????????????# c c """??????? | | ????????????###* ### #!!##x ""#??????? | | ????????????### /### #!!#?? ###??????? | | ????????????#** ///########??? #????????? | | ????????????#* * /#???????????!#???????? | | ????????????#* /#????????????#???????? | | ????????????### ###????????????????????? | | ????????????#! !#????????????????????? | | ????????????#! ! !#????????????????????? | | ????????????#!! !#????????????????????? | | ############### ###????????????????????? | | ! ## "!!!###! ##?????????????????????? | | ! #" #!!!## H ##!!!#????????????????? | | ! ???????????? | | % ??????????? | | ^ ???????????? | | ## #]]]## ##!!!# ##???????????? | | ## #]]]### ##?!!!#?? #????????????? | | # ##########?# #???###????????????????? | | ! ]!!#????????! ]]?????????????????????? | | ! !!#????????! ]]#????????????????????? | | ! !!#????????! ]]#????????????????????? | | # ###????????# ###????????????????????? | +----------------------------------------------------+ Best States ------------- Heat Dissipation 64 Energy Generation 5 Energy Capacity 100 Matter Stores 291 Matter Capacity 300 Sight Range 20 Terrain Scan Density 10 Evasion (%) 62 Item Schematics ----------------- None Robot Schematics ------------------ None Fabricated ------------ Nothing Repaired ---------- Nothing Studied --------- None Alien Tech Used ----------------- None Achievements -------------- None Challenges ------------ None Game ------ Seed ActiveRefineryTriangulator Manual? 0 Play Time 00:08:34 Cumulative 292.4 hours Start 2026.07.18 @ 05:28:47 End 2026.07.18 @ 05:36:45 Sessions 1 Manual Loads 0 Difficulty Rogue Special Mode None Game No. 137 Rogue 137 Adventurer 0 Explorer 0 Win Type - Total 18 Types 14/1/1/1/0/0/0/0/0/1 Lore% 79 Gallery% 74 Achievement% 72 Wizard Run 0 Options --------- Layout 0 ASCII 0 Keyboard 1 Movement Arrows Keybinds 0 Fullscreen 2 Font 18/SmallcapsGlow Map View 76x50 Zoom Use 0% Tactical HUD 1 Map Filters NONE Filters NONE Steam 1 RUN: 5f2554dd-d5a1-4fe2-8f99-9f59320fe1e9